fUST/lending_fUST_20240213
["ID","MTS","AMOUNT","RATE_DAILY","PERIOD"]
[313892797,1707775845133,-500.0,0.00025753,2]
[313892798,1707775845143,-500.0,0.00025753,2]
[313892799,1707775845153,-500.0,0.00025753,2]
[313892800,1707775845163,-300.0,0.000258,12]
[313892801,1707775845173,-34556.31581678,0.00025998,2]
[313892802,1707775845182,-151.0,0.00025998,2]
[313892803,1707775845192,-280.68844006,0.00026,2]
[313892804,1707775845201,-500.0,0.00026027,2]
[313892805,1707775845210,-500.0,0.00026027,2]
[313892806,1707775845219,-500.0,0.00026027,2]
[313892807,1707775845228,-2675.17,0.00026027,2]
[313892808,1707775845237,-1605.7,0.00026027,2]
[313892809,1707775845246,-500.0,0.00026027,2]
[313892810,1707775845255,-1437.97,0.00026027,2]
[313892811,1707775845264,-1077.82,0.00026027,2]
[313892812,1707775845273,-500.0,0.00026027,2]
[313892813,1707775845282,-151.0,0.00026027,2]
[313892814,1707775845291,-500.0,0.00026027,2]
[313892815,1707775845301,-280.46721,0.00026027,2]
[313892817,1707775845310,-1918.7,0.00026027,2]
[313892819,1707775845319,-500.0,0.00026027,2]
[313892820,1707775845328,-500.0,0.00026027,2]
[313892821,1707775845337,-610.38,0.00026027,2]
[313892822,1707775845347,-1115.86,0.00026027,2]
[313892823,1707775845359,-500.0,0.00026027,2]
[313892824,1707775845368,-500.0,0.00026027,2]
[313892825,1707775845377,-500.0,0.00026027,2]
[313892826,1707775845386,-500.0,0.00026027,2]
[313892827,1707775845397,-1500.0,0.00026094,2]
[313892828,1707775845406,-5000.0,0.00026287,2]
[313892829,1707775845415,-5000.0,0.00026287,2]
[313892830,1707775845425,-500.0,0.00026301,2]
[313892832,1707775845434,-500.0,0.00026301,2]
[313892834,1707775845531,-500.0,0.00026301,2]
[313892835,1707775845540,-2675.17,0.00026301,2]
[313892836,1707775845550,-1605.7,0.00026301,2]
[313892837,1707775845560,-363.68,0.00026301,2]
[313892838,1707775845569,-1437.97,0.00026301,2]
[313892839,1707775845578,-1077.82,0.00026301,2]
[313892840,1707775845587,-500.0,0.00026301,2]
[313892841,1707775845597,-500.0,0.00026301,2]
[313892842,1707775845606,-1918.7,0.00026301,2]
[313892843,1707775845614,-500.0,0.00026301,2]
[313892844,1707775845623,-500.0,0.00026301,2]
[313892845,1707775845633,-610.38,0.00026301,2]
[313892846,1707775845642,-1115.86,0.00026301,2]
[313892847,1707775845651,-500.0,0.00026301,2]
[313892848,1707775845660,-500.0,0.00026301,2]
[313892849,1707775845669,-500.0,0.00026301,2]
[313892850,1707775845678,-500.0,0.00026301,2]
[313892851,1707775845686,-153.34627261,0.00026496,2]
[313892852,1707775845695,-503.02300052,0.00026498,5]
[313892853,1707775845704,-298.56049544,0.00026499,2]
[313892854,1707775845713,-200.0,0.00026533,15]
[313892855,1707775845722,-348.0,0.00026533,15]
[313892856,1707775845730,-500.0,0.00026575,2]
[313892857,1707775845740,-500.0,0.00026575,2]
[313892858,1707775845749,-500.0,0.00026575,2]
[313892859,1707775845758,-2675.17,0.00026575,2]
[313892860,1707775845767,-1605.7,0.00026575,2]
[313892861,1707775845776,-1437.97,0.00026575,2]
[313892862,1707775845785,-1077.82,0.00026575,2]
[313892863,1707775845794,-500.0,0.00026575,2]
[313892864,1707775845803,-1918.7,0.00026575,2]
[313892865,1707775845813,-500.0,0.00026575,2]
[313892866,1707775845822,-500.0,0.00026575,2]
[313892867,1707775845831,-610.38,0.00026575,2]
[313892868,1707775845840,-1115.86,0.00026575,2]
[313892869,1707775845849,-427.42605588,0.00026575,2]
[313892870,1707775845858,-500.0,0.00026575,2]
[313892871,1707775845867,-500.0,0.00026575,2]
[313892872,1707775845876,-644.28957637,0.00026649,2]
[313892873,1707775845886,-300.0,0.000267,2]
[313892874,1707775845895,-153.34627261,0.00026726,2]
[313892875,1707775845905,-201.96330136,0.00026779,2]
[313892876,1707775845914,-500.0,0.00026849,2]
[313892877,1707775845923,-157.07,0.00026849,2]
[313892878,1707775845932,-500.0,0.00026849,2]
[313892880,1707775845941,-2675.17,0.00026849,2]
[313892881,1707775845950,-1605.7,0.00026849,2]
[313892882,1707775845959,-1437.97,0.00026849,2]
[313892883,1707775845968,-1077.82,0.00026849,2]
[313892884,1707775845977,-500.0,0.00026849,2]
[313892885,1707775845987,-1918.7,0.00026849,2]
[313892886,1707775845996,-500.0,0.00026849,2]
[313892887,1707775846005,-500.0,0.00026849,2]
[313892888,1707775846014,-610.38,0.00026849,2]
[313892889,1707775846024,-1115.86,0.00026849,2]
[313892891,1707775846033,-500.0,0.00026849,2]
[313892892,1707775846042,-3062.68810289,0.00027,2]
[313892894,1707775846051,-361.0,0.00027,2]
[313892896,1707775846060,-185.0,0.00027,2]
[313892898,1707775846069,-151.0,0.00027,2]
[313892899,1707775846079,-153.34627261,0.00027061,2]
[313892901,1707775846088,-150.0,0.00027081,2]
[313892902,1707775846098,-262.35,0.00027123,2]
[313892903,1707775846107,-500.0,0.00027123,2]
[313892905,1707775846116,-2675.17,0.00027123,2]
[313892907,1707775846125,-1605.7,0.00027123,2]
[313892908,1707775846135,-1437.97,0.00027123,2]
[313892909,1707775846143,-1077.82,0.00027123,2]
[313892910,1707775846153,-151.0,0.00027123,2]
[313892911,1707775846162,-500.0,0.00027123,2]
[313892912,1707775846171,-1918.7,0.00027123,2]
[313892913,1707775846182,-500.0,0.00027123,2]
[313892914,1707775846192,-500.0,0.00027123,2]
[313892915,1707775846201,-610.38,0.00027123,2]
[313892916,1707775846211,-1115.86,0.00027123,2]
[313892917,1707775846220,-500.0,0.00027123,2]
[313892918,1707775846230,-433.363769,0.00027244,2]
[313892919,1707775846240,-11004.34905528,0.0002728,2]
[313892920,1707775846249,-300.0,0.000273,13]
[313892921,1707775846258,-155.0,0.00027397,2]
[313892922,1707775846267,-307.4017009,0.00027397,2]
[313892923,1707775846276,-500.0,0.00027397,2]
[313892924,1707775846286,-2675.17,0.00027397,2]
[313892925,1707775846295,-1605.7,0.00027397,2]
[313892926,1707775846304,-1437.97,0.00027397,2]
[313892927,1707775846313,-1077.82,0.00027397,2]
[313892928,1707775846322,-500.0,0.00027397,2]
[313892929,1707775846332,-1918.7,0.00027397,2]
[313892930,1707775846341,-299.95,0.00027397,2]
[313892931,1707775846351,-500.0,0.00027397,2]
[313892932,1707775846363,-610.38,0.00027397,2]
[313892933,1707775846372,-1115.86,0.00027397,2]
[313892934,1707775846382,-500.0,0.00027397,2]
[313892935,1707775846392,-150.1,0.00027397,2]
[313892936,1707775846402,-300.0,0.00027404,2]
[313892937,1707775846411,-20074.09839927,0.000275,2]
[313892938,1707775846421,-3567.574208,0.000275,2]
[313892939,1707775846430,-500.0,0.00027534,2]
[313892940,1707775846441,-1411.76778685,0.00027616,2]
[313892941,1707775846450,-500.0,0.00027671,2]
[313892942,1707775846459,-2675.17,0.00027671,2]
[313892943,1707775846468,-1605.7,0.00027671,2]
[313892944,1707775846477,-1437.97,0.00027671,2]
[313892945,1707775846486,-1077.82,0.00027671,2]
[313892946,1707775846496,-500.0,0.00027671,2]
[313892947,1707775846505,-1918.7,0.00027671,2]
[313892948,1707775846515,-500.0,0.00027671,2]
[313892949,1707775846524,-610.38,0.00027671,2]
[313892950,1707775846534,-1115.86,0.00027671,2]
[313892951,1707775846543,-500.0,0.00027671,2]
[313892952,1707775846552,-361.0,0.00027671,2]
[313892953,1707775846561,-181.65343727,0.00027808,2]
[313892954,1707775846571,-153.34627261,0.00027855,2]
[313892955,1707775846581,-375.905843,0.00027885,2]
[313892956,1707775846592,-161.5844476,0.00027895,2]
[313892957,1707775846601,-179.284348,0.00027895,2]
[313892958,1707775846611,-285.92416695,0.00027895,2]
[313892959,1707775846620,-434.17875911,0.00027895,2]
[313892960,1707775846629,-155.21231026,0.00027895,2]
[313892961,1707775846638,-535.69531343,0.00027896,2]
[313892962,1707775846647,-155.0480649,0.00027896,2]
[313892963,1707775846656,-200.08774862,0.00027896,2]
[313892964,1707775846666,-44444.0,0.00027897,2]
[313892965,1707775846676,-766.49436698,0.00027897,2]
[313892966,1707775846685,-296.78578,0.00027897,2]
[313892967,1707775846694,-201.5319294,0.000279,2]
[313892968,1707775846704,-201.53192939,0.000279,2]
[313892969,1707775846717,-2675.17,0.00027945,2]
[313892970,1707775846729,-1605.7,0.00027945,2]
[313892971,1707775846742,-1437.97,0.00027945,2]
[313892972,1707775846754,-1077.82,0.00027945,2]
[313892973,1707775846766,-500.0,0.00027945,2]
[313892974,1707775846778,-1918.7,0.00027945,2]
[313892975,1707775846787,-484.22145185,0.00027945,2]
[313892976,1707775846798,-610.38,0.00027945,2]
[313892977,1707775846809,-1115.86,0.00027945,2]
[313892978,1707775846821,-500.0,0.00027945,2]
[313892979,1707775846833,-150.0,0.00027997,2]
[313892980,1707775846844,-159.24384051,0.00027998,2]
[313892981,1707775846855,-257.43879692,0.00027998,2]
[313892982,1707775846867,-236.36295004,0.00027999,10]
[313892983,1707775846878,-160133.35857837,0.00028,20]
[313892984,1707775847067,-4830.93,0.00025988,3]
[313892985,1707775847078,-8529.86544684,0.00028,20]
[313892986,1707775847092,-192525.47896664,0.00028,20]
[313892987,1707775847105,-240.9330968,0.00028,2]
[313892988,1707775847118,-3296.24008617,0.00028,2]
[313892989,1707775847129,-241.11666994,0.00028,2]
[313892990,1707775847139,-600.0,0.00028,2]
[313892991,1707775847151,-1000.0,0.00028,28]
[313892992,1707775847163,-313.55083631,0.00028,7]
[313892993,1707775847173,-10290.02845604,0.00028,2]
[313892995,1707775872466,-6000.0,0.00040732,88]
[313892996,1707775872490,-90822.99263606,0.00040732,120]
[313892997,1707775872515,-500.0,0.00040732,120]
[313892998,1707775872539,-1825.26689879,0.00040732,120]
[313892999,1707775872562,-1748.58397339,0.00040732,120]
[313893000,1707775872586,-2524.81711377,0.00040732,120]
[313893001,1707775872609,-269.76712696,0.00040732,120]
[313893002,1707775872633,-968.96751337,0.00040732,120]
[313893003,1707775872661,-168.10993461,0.00040732,120]
[313893004,1707775872684,-1234.56212016,0.00040732,120]
[313893005,1707775872707,-1218.77333978,0.00040732,120]
[313893006,1707775872729,-2447.55343484,0.00040732,120]
[313893007,1707775872751,-497.14449843,0.00040732,120]
[313893008,1707775872774,-3000.0,0.00040732,60]
[313893009,1707775872796,-3000.0,0.00040732,70]
[313893010,1707775872818,-3000.0,0.00040732,80]
[313893011,1707775872841,-3000.0,0.00040732,90]
[313893012,1707775872863,-3000.0,0.00040732,95]
[313893013,1707775872885,-794.47819671,0.00040732,65]
[313893014,1707775872908,-1889.46535699,0.00040732,120]
[313893015,1707775872931,-4000.0,0.00040732,60]
[313893016,1707775872953,-4000.0,0.00040732,90]
[313893017,1707775872975,-4795.0,0.00040732,120]
[313893018,1707775872998,-10795.0,0.00040732,60]
[313893019,1707775873021,-201.557195,0.00040732,120]
[313893020,1707775873044,-150.77885746,0.00040732,120]
[313893026,1707775976895,-150.0,0.00028577,120]
[313893027,1707775976921,-37997.68300576,0.000295,30]
[313893028,1707775977107,-8678.53244945,0.000296,30]
[313893029,1707775977133,-453173.78454479,0.0003,30]
[313893030,1707775984885,-208354.07950151,0.0003,30]
[313893031,1707775984908,-3354.0,0.0003,30]
[313893032,1707775984931,-1000.0,0.0003,30]
[313893033,1707775984954,-127487.0,0.0003,30]
[313893034,1707775984978,-2591.76915834,0.0003,30]
[313893035,1707775985002,-176.4,0.0003066,35]
[313893036,1707775985026,-150.5,0.0003066,35]
[313893037,1707775985049,-169.29,0.0003066,35]
[313893038,1707775985072,-150.5,0.0003066,35]
[313893039,1707775985095,-150.5,0.0003066,35]
[313893040,1707775985119,-6255.0,0.0003066,35]
[313893041,1707775985141,-303.0,0.0003066,35]
[313893042,1707775985164,-244.0,0.0003066,35]
[313893043,1707775985188,-8051.0,0.0003066,35]
[313893044,1707775985211,-293.0,0.0003066,35]
[313893045,1707775985233,-290.0,0.0003067,35]
[313893046,1707775985256,-203.0,0.0003067,35]
[313893047,1707775985279,-150.5,0.0003067,35]
[313893048,1707775985301,-150.5,0.0003067,35]
[313893049,1707775985325,-150.5,0.0003067,35]
[313893050,1707775985348,-150.5,0.0003067,35]
[313893051,1707775985372,-150.5,0.0003067,35]
[313893052,1707775985397,-6255.0,0.0003067,35]
[313893053,1707775985419,-303.0,0.0003067,35]
[313893054,1707775985442,-244.0,0.0003067,35]
[313893055,1707775985465,-8051.0,0.0003067,35]
[313893056,1707775985492,-293.0,0.0003067,35]
[313893057,1707775985515,-290.0,0.0003068,35]
[313893058,1707775985538,-203.0,0.0003068,35]
[313893059,1707775985562,-150.5,0.0003068,35]
[313893060,1707775985586,-150.5,0.0003068,35]
[313893061,1707775985609,-150.5,0.0003068,35]
[313893062,1707775985632,-150.5,0.0003068,35]
[313893063,1707775985655,-150.5,0.0003068,35]
[313893064,1707775985678,-6255.0,0.0003068,35]
[313893065,1707775985701,-303.0,0.0003068,35]
[313893066,1707775985723,-244.0,0.0003068,35]
[313893067,1707775985746,-8051.0,0.0003068,35]
[313893068,1707775985771,-293.0,0.0003068,35]
[313893069,1707775985795,-290.0,0.0003069,35]
[313893070,1707775985819,-203.0,0.0003069,35]
[313893071,1707775985844,-150.0,0.00030911,120]
[313893072,1707775985869,-166.134712,0.00030959,31]
[313893073,1707775985894,-166.134712,0.00030959,38]
[313893074,1707775985917,-166.134712,0.00030959,46]
[313893075,1707775985939,-166.134712,0.00030959,53]
[313893076,1707775985962,-166.134712,0.00030959,61]
[313893077,1707775985988,-166.134712,0.00030959,68]
[313893078,1707775986010,-166.134712,0.00030959,75]
[313893079,1707775986033,-166.134712,0.00030959,83]
[313893080,1707775986055,-166.134712,0.00030959,90]
[313893081,1707775986078,-166.134712,0.00030959,97]
[313893082,1707775986100,-166.134712,0.00030959,105]
[313893083,1707775986123,-166.134712,0.00030959,112]
[313893084,1707775986146,-166.134712,0.00030959,120]
[313893085,1707775986168,-1000.0,0.00031,31]
[313893086,1707775986190,-10000.0,0.00031,30]
[313893087,1707775986213,-3012.7484821,0.000318,30]
[313893088,1707775986236,-226.6,0.0003187,35]
[313893089,1707775986260,-303.0,0.0003187,35]
[313893090,1707775986283,-244.0,0.0003187,35]
[313893091,1707775986305,-293.0,0.0003187,35]
[313893092,1707775986329,-6255.0,0.0003187,35]
[313893093,1707775986352,-8051.0,0.0003187,35]
[313893094,1707775986377,-203.0,0.0003187,35]
[313893095,1707775986403,-290.0,0.0003187,35]
[313893096,1707775986427,-150.5,0.0003188,35]
[313893097,1707775986451,-156.79,0.0003188,35]
[313893098,1707775986475,-303.0,0.0003188,35]
[313893099,1707775986499,-303.0,0.0003188,35]
[313893100,1707775986522,-244.0,0.0003188,35]
[313893101,1707775986544,-293.0,0.0003188,35]
[313893102,1707775986569,-244.0,0.0003188,35]
[313893103,1707775986592,-293.0,0.0003188,35]
[313893104,1707775986617,-8051.0,0.0003188,35]
[313893105,1707775986640,-6255.0,0.0003188,35]
[313893106,1707775986663,-203.0,0.0003188,35]
[313893107,1707775986687,-203.0,0.0003188,35]
[313893108,1707775986710,-290.0,0.0003188,35]
[313893109,1707775986733,-6255.0,0.0003188,35]
[313893110,1707775986755,-8051.0,0.0003188,35]
[313893111,1707775986777,-154.31,0.0003189,35]
[313893112,1707775986800,-150.5,0.0003189,35]
[313893113,1707775986822,-150.5,0.0003189,35]
[313893114,1707775986844,-303.0,0.0003189,35]
[313893115,1707775986875,-303.0,0.0003189,35]
[313893116,1707775986905,-244.0,0.0003189,35]
[313893117,1707775986928,-293.0,0.0003189,35]
[313893118,1707775986951,-244.0,0.0003189,35]
[313893119,1707775986975,-293.0,0.0003189,35]
[313893120,1707775986999,-8051.0,0.0003189,35]
[313893121,1707775987023,-6255.0,0.0003189,35]
[313893122,1707775987170,-203.0,0.0003189,35]
[313893123,1707775987210,-203.0,0.0003189,35]
[313893124,1707775987237,-290.0,0.0003189,35]
[313893125,1707775987260,-6255.0,0.0003189,35]
[313893126,1707775987284,-8051.0,0.0003189,35]
[313893127,1707775987306,-290.0,0.0003196,35]
[313893128,1707775987329,-290.0,0.0003197,35]
[313893129,1707775987351,-159.0276822,0.00032,30]
[313893130,1707775987374,-4946.71167552,0.00032,30]
[313893131,1707775987399,-1000.0,0.00032,32]
[313893132,1707775987423,-6381.52224433,0.00033,30]
[313893337,1707777038146,-873.1806744,0.00019053,2]
[313893338,1707777038158,-1733.97919696,0.00019054,2]
[313893339,1707777038167,-154.9690062,0.00019054,3]
[313893340,1707777038176,-1476.21611664,0.00019055,2]
[313893341,1707777038188,-472.51345676,0.00019055,2]
[313893342,1707777038197,-2312.28654324,0.00019061,2]
[313893406,1707777041185,-18958.02835759,0.00019061,2]
[313893408,1707777041198,-3629.68509917,0.00019061,2]
[313893409,1707777041207,-177.15496,0.00019634,2]
[313893410,1707777041217,-156.0183118,0.00020281,2]
[313893411,1707777041225,-177.15496,0.00020303,2]
[313893412,1707777041235,-2906.25135508,0.00020899,2]
[313893413,1707777041245,-200.0,0.00020966,2]
[313893414,1707777041254,-177.15496,0.00020972,2]
[313893415,1707777041265,-155.34094271,0.00021,2]
[313893416,1707777041275,-177.15496,0.00021641,2]
[313893417,1707777041284,-427.63664462,0.00022,2]
[313893418,1707777041294,-326.73535811,0.00022,2]
[313893419,1707777041302,-177.15496,0.00022311,2]
[313893420,1707777041312,-2203.77021778,0.0002249,3]
[313893421,1707777041324,-1921.91978222,0.0002249,3]
[313893422,1707777041332,-1434.20809179,0.00022499,2]
[313893423,1707777041341,-9358.35643957,0.000225,2]
[313893469,1707777043413,-256.17,0.000225,2]
[313893472,1707777043424,-345.12869652,0.000225,2]
[313893485,1707777046093,-2288.51586688,0.000225,2]
[313893486,1707777046105,-715.31892327,0.000225,2]
[313893568,1707778232261,-679.0873968,0.00020293,2]
[313893569,1707778232270,-385.31623751,0.00020294,2]
[313893571,1707778232282,-1348.66295945,0.00020294,2]
[313893573,1707778232291,-155.0,0.00020294,4]
[313893574,1707778232300,-454.71886916,0.00020294,2]
[313893576,1707778232309,-199.91116455,0.00020295,2]
[313893578,1707778232318,-2608.13285009,0.00020295,2]
[313893580,1707778232327,-1019.11530917,0.00020295,2]
[313893582,1707778232336,-294.77721875,0.00020296,2]
[313893583,1707778232346,-6809.12315047,0.00020296,2]
[313893586,1707778232355,-155.0,0.00020297,2]
[313893588,1707778232364,-1498.3806744,0.00020297,2]
[313893589,1707778232374,-5732.58889932,0.00020298,2]
[313893617,1707778238403,-155.0,0.00020293,2]
[313893619,1707778238413,-13238.54373587,0.00020298,2]
[313893621,1707778238422,-17663.7254004,0.00020326,2]
[313893622,1707778238431,-241.25652876,0.000204,2]
[313893623,1707778238440,-326.73535811,0.00022,2]
[313893624,1707778238449,-427.63664462,0.00022186,2]
[313893625,1707778238458,-1781.26029944,0.00022187,2]
[313893626,1707778238467,-830.95280452,0.0002219,2]
[313893627,1707778238476,-3786.96,0.00022263,3]
[313893628,1707778238486,-19145.40708381,0.00022273,2]
[313893629,1707778238494,-200.0,0.00022324,7]
[313893630,1707778238504,-224.66178881,0.00022398,2]
[313893631,1707778238513,-12700.58945955,0.00022497,2]
[313893632,1707778238522,-364.58917028,0.00022498,2]
[313893633,1707778238532,-155.05116031,0.00022498,2]
[313893634,1707778238541,-763.21064508,0.00022498,2]
[313893635,1707778238550,-158.423577,0.00022498,2]
[313893636,1707778238560,-968.60320593,0.00022498,2]
[313893637,1707778238569,-261.17070193,0.00022498,2]
[313893638,1707778238579,-201.6297404,0.00022498,2]
[313893639,1707778238588,-519.56748312,0.00022498,2]
[313893640,1707778238597,-155.26660478,0.00022498,2]
[313893641,1707778238606,-155.13167759,0.00022498,2]
[313893642,1707778238615,-1745.27472039,0.00022498,2]
[313893643,1707778238624,-906.46807467,0.00022498,2]
[313893644,1707778238633,-309.76767502,0.00022498,2]
[313893645,1707778238642,-223.29993681,0.00022498,2]
[313893646,1707778238652,-651.85853467,0.00022498,2]
[313893647,1707778238661,-500.0,0.00022498,2]
[313893648,1707778238670,-35619.98510776,0.00022498,2]
[313893649,1707778238679,-313.06031524,0.00022499,2]
[313893650,1707778238689,-247.39952375,0.00022499,2]
[313893651,1707778238698,-220.05024398,0.00022499,2]
[313893652,1707778238707,-38505.62977494,0.000225,2]
[313893653,1707778238720,-998.86940964,0.000225,2]
[313893666,1707778241425,-260.2652,0.00022487,3]
[313893673,1707778241481,-1001.1463276,0.00022487,3]
[313893848,1707778243324,-1894.3884724,0.00022487,3]
[313893851,1707778243333,-8065.79138494,0.000225,2]
[313893853,1707778243342,-300.0,0.000225,2]
[313893855,1707778243351,-1833.12108864,0.000225,2]
[313893857,1707778243360,-2092.52534233,0.000225,2]
[313893859,1707778243369,-402.00358314,0.000225,2]
[313893861,1707778243378,-430.77315445,0.000225,2]
[313893863,1707778243387,-1317.34295155,0.00022668,2]
[313893865,1707778243397,-1322.81428719,0.00022908,2]
[313893867,1707778243405,-6355.59872381,0.00022908,2]
[313893870,1707778243420,-2277.51031776,0.00022908,2]
[313893873,1707778243429,-1465.3246607,0.00022908,2]
[313893875,1707778243438,-2819.53713218,0.00022908,2]
[313893877,1707778243447,-1264.21341125,0.00023,2]
[313893879,1707778243457,-9976.71224854,0.00023,2]
[313893881,1707778243466,-162.25323151,0.00023123,3]
[313893883,1707778243475,-300.0,0.000243,11]
[313893885,1707778243484,-2396.5143449,0.00024465,2]
[313893887,1707778243492,-280.0,0.00024556,7]
[313893889,1707778243501,-742.04082584,0.00024655,2]
[313893891,1707778243510,-848.05787224,0.00024655,2]
[313893892,1707778243520,-155.07909034,0.00024655,2]
[313893894,1707778243529,-213.46268132,0.00024655,2]
[313893896,1707778243538,-163.07769424,0.00024656,2]
[313893898,1707778243547,-1623.31444154,0.00024656,2]
[313893900,1707778243556,-314.02412757,0.00024657,2]
[313893902,1707778243565,-370.14344084,0.00024657,2]
[313893904,1707778243574,-500.0,0.00024657,2]
[313893918,1707778243681,-500.0,0.00024657,2]
[313893920,1707778243707,-690.04,0.00024657,2]
[313893922,1707778243716,-364.52,0.00024657,2]
[313893924,1707778243725,-500.0,0.00024657,2]
[313893926,1707778243735,-500.0,0.00024657,2]
[313893928,1707778243744,-500.0,0.00024657,2]
[313893930,1707778243753,-949.58,0.00024657,2]
[313893932,1707778243762,-535.89,0.00024657,2]
[313893934,1707778243771,-500.0,0.00024657,2]
[313893936,1707778243781,-500.0,0.00024657,2]
[313893938,1707778243789,-500.0,0.00024657,2]
[313893940,1707778243799,-774.83,0.00024657,2]
[313893942,1707778243808,-1362.1,0.00024657,2]
[313893944,1707778243817,-500.0,0.00024931,2]
[313893946,1707778243826,-690.04,0.00024931,2]
[313893948,1707778243835,-500.0,0.00024931,2]
[313893950,1707778243844,-949.58,0.00024931,2]
[313893952,1707778243853,-500.0,0.00024931,2]
[313893954,1707778243862,-535.89,0.00024931,2]
[313893956,1707778243871,-634.07,0.00024931,2]
[313893958,1707778243880,-774.83,0.00024931,2]
[313893960,1707778243888,-1362.1,0.00024931,2]
[313893962,1707778243898,-335.81448194,0.00025,2]
[313893964,1707778243907,-7412.2245313,0.00025,2]
[313893966,1707778243916,-12723.42901826,0.00025077,2]
[313893968,1707778243925,-35642.36830711,0.00025105,2]
[313893970,1707778243934,-500.0,0.00025205,2]
[313893972,1707778243943,-690.04,0.00025205,2]
[313893974,1707778243952,-500.0,0.00025205,2]
[313893976,1707778243960,-949.58,0.00025205,2]
[313893978,1707778243969,-535.89,0.00025205,2]
[313893980,1707778243978,-774.83,0.00025205,2]
[313893981,1707778243988,-1362.1,0.00025205,2]
[313893983,1707778243998,-241.25652876,0.000254,2]
[313893985,1707778244007,-500.0,0.00025479,2]
[313893987,1707778244017,-690.04,0.00025479,2]
[313893989,1707778244026,-500.0,0.00025479,2]
[313893991,1707778244035,-949.58,0.00025479,2]
[313893993,1707778244044,-535.89,0.00025479,2]
[313893995,1707778244053,-774.83,0.00025479,2]
[313893997,1707778244063,-1362.1,0.00025479,2]
[313893999,1707778244073,-250.0,0.00025753,2]
[313894001,1707778244082,-5578.11748451,0.00025753,2]
[313894003,1707778244095,-223.30093773,0.00025753,2]
[313894005,1707778244104,-200.0,0.00025753,2]
[313894007,1707778244114,-500.0,0.00025753,2]
[313894009,1707778244124,-690.04,0.00025753,2]
[313894011,1707778244134,-500.0,0.00025753,2]
[313894013,1707778244143,-949.58,0.00025753,2]
[313894015,1707778244154,-535.89,0.00025753,2]
[313894017,1707778244163,-774.83,0.00025753,2]
[313894019,1707778244172,-1362.1,0.00025753,2]
[313894021,1707778244182,-300.0,0.000258,12]
[313894022,1707778244191,-280.68844006,0.00026,2]
[313894024,1707778244201,-500.0,0.00026027,2]
[313894026,1707778244210,-690.04,0.00026027,2]
[313894028,1707778244218,-500.0,0.00026027,2]
[313894030,1707778244227,-949.58,0.00026027,2]
[313894032,1707778244237,-535.89,0.00026027,2]
[313894034,1707778244246,-774.83,0.00026027,2]
[313894036,1707778244255,-1362.1,0.00026027,2]
[313894038,1707778244265,-500.0,0.00026301,2]
[313894040,1707778244274,-690.04,0.00026301,2]
[313894041,1707778244284,-500.0,0.00026301,2]
[313894042,1707778244293,-949.58,0.00026301,2]
[313894043,1707778244302,-535.89,0.00026301,2]
[313894044,1707778244311,-774.83,0.00026301,2]
[313894045,1707778244321,-1362.1,0.00026301,2]
[313894046,1707778244331,-500.0,0.00026575,2]
[313894047,1707778244341,-690.04,0.00026575,2]
[313894048,1707778244350,-500.0,0.00026575,2]
[313894049,1707778244359,-949.58,0.00026575,2]
[313894050,1707778244368,-535.89,0.00026575,2]
[313894051,1707778244378,-774.83,0.00026575,2]
[313894052,1707778244387,-1362.1,0.00026575,2]
[313894053,1707778244396,-500.0,0.00026849,2]
[313894054,1707778244405,-690.04,0.00026849,2]